bitfinex/quotes_ETHUSD_20250611
["timestamp","ask_amount","ask_price","bid_price","bid_amount"]
[1749680623956,8.14005427,2756.3,2755.9,0.815]
[1749680624356,4.512,2756.3,2755.9,0.815]
[1749680624555,3.62782605,2756.5,2755.9,0.815]
[1749680624769,3.6278511,2756.5,2755.9,0.815]
[1749680624977,8.13693714,2756.4,2755.9,0.815]
[1749680625195,4.508,2756.3,2755.9,0.815]
[1749680625403,3.6283248,2756.1,2755.9,0.815]
[1749680625570,8.13606879,2756.3,2755.9,0.815]
[1749680625772,3.62818373,2756.2,2755.9,0.815]
[1749680625968,4.506,2756.1,2755.9,0.815]
[1749680626162,0.84190943,2756.8,2755.9,0.815]
[1749680626376,3.62765725,2756.6,2755.9,0.815]
[1749680626671,4.498,2756.7,2755.9,0.815]
[1749680626875,0.84191422,2757.1,2755.9,0.815]
[1749680627074,3.6272625,2756.9,2756.0,0.8184]
[1749680627421,4.496,2757.0,2756.0,0.8184]
[1749680627581,3.62777656,2756.6,2756.0,0.8184]
[1749680627903,4.494,2756.5,2756.0,0.8184]
[1749680628399,3.62831107,2756.2,2756.0,0.8184]
[1749680628965,3.62812245,2756.3,2756.0,0.8184]
[1749680629165,0.84108326,2756.9,2756.0,0.8184]
[1749680629361,0.1808,2756.5,2756.0,0.9992]
[1749680629764,3.62831537,2756.1,2756.0,0.9992]
[1749680629980,3.6282392,2756.2,2756.0,0.9992]
[1749680630277,4.477,2756.1,2756.0,0.9992]
[1749680630487,4.478,2756.1,2756.0,0.9992]
[1749680630777,8.10631537,2756.1,2756.0,0.9992]
[1749680631178,8.10631537,2756.1,2756.0,0.8184]
[1749680631592,4.478,2756.1,2755.5,0.7653]
[1749680631828,3.62897372,2755.6,2755.5,0.7653]
[1749680632042,8.09997372,2755.6,2755.5,0.7653]
[1749680632334,8.09997372,2755.6,2754.4,0.7653]
[1749680632335,8.10000775,2755.6,2754.4,0.7653]
[1749680632550,8.10000775,2755.6,2754.3,0.36114122]
[1749680632551,3.62897562,2755.6,2754.5,7.07018264]
[1749680632846,8.10113235,2755.5,2754.9,0.8176]
[1749680633127,3.62971744,2755.1,2754.9,0.8176]
[1749680633277,1.39475852,2756.4,2754.9,0.8176]
[1749680633278,0.5372,2756.1,2754.9,0.8176]
[1749680633478,3.62962643,2755.2,2754.9,0.8176]
[1749680633717,3.62857868,2755.9,2754.9,0.8176]
[1749680633917,3.62919185,2755.5,2754.9,0.8176]
[1749680634097,3.62900945,2755.6,2754.9,0.8176]
[1749680634486,4.477,2755.5,2754.9,0.8176]
[1749680634686,3.62922494,2755.5,2754.9,0.8176]
[1749680634886,4.475,2755.4,2754.9,0.8176]
[1749680635086,8.10427935,2755.4,2754.9,0.8176]
[1749680635283,4.475,2755.4,2754.9,0.8176]
[1749680635606,4.469,2755.3,2754.9,0.8176]
[1749680636007,4.469,2755.3,2754.3,0.36661746]
[1749680636343,4.469,2755.3,2754.0,0.005]
[1749680636521,0.5372,2755.2,2754.0,0.005]
[1749680636706,3.63015936,2754.7,2754.0,0.005]
[1749680636904,4.471,2754.6,2754.0,0.005]
[1749680637124,4.471,2754.6,2754.1,1.06309504]
[1749680637308,4.47,2754.5,2754.2,0.8176]
[1749680638030,0.84104703,2755.5,2754.2,0.8176]
[1749680638234,4.463,2755.4,2754.3,0.785]
[1749680638433,4.463,2755.3,2754.3,0.785]
[1749680638615,3.62969629,2755.1,2754.4,1.0785]
[1749680638840,8.09253374,2755.2,2754.4,1.0785]
[1749680639131,3.62982091,2755.0,2754.4,1.0785]
[1749680639329,3.62967237,2755.1,2754.3,0.785]
[1749680639514,4.463,2755.0,2754.3,0.785]
[1749680640199,0.84192125,2755.8,2754.7,7.07018264]
[1749680640398,4.458,2755.7,2754.9,0.785]
[1749680640599,3.62897372,2755.6,2754.9,0.785]
[1749680640837,3.62870314,2755.9,2754.9,0.785]
[1749680640998,3.62878507,2755.8,2754.9,0.785]
[1749680641194,4.457,2755.7,2754.9,0.785]
[1749680641643,8.08589799,2755.7,2755.3,0.1808]
[1749680641800,0.84250167,2756.3,2754.5,10.0]
[1749680641801,0.84250167,2756.4,2755.4,0.785]
[1749680642137,4.452,2756.3,2755.6,0.785]
[1749680642336,3.62838675,2756.1,2755.6,0.785]
[1749680642644,8.08009975,2756.3,2755.6,0.785]
[1749680642949,4.451,2756.2,2755.6,0.785]
[1749680643305,3.62774351,2756.6,2755.6,0.785]
[1749680643502,3.62760335,2756.7,2755.7,1.0785]
[1749680643823,3.62716481,2757.0,2755.8,0.8254]
[1749680644029,3.62739408,2756.8,2755.8,0.8254]
[1749680644204,3.62765725,2756.6,2755.8,0.8254]
[1749680644398,3.62832387,2756.1,2755.8,0.8254]
[1749680644629,4.447,2756.0,2755.8,0.8254]
[1749680645038,4.447,2756.0,2755.2,0.8254]
[1749680645440,3.62930591,2755.4,2755.2,0.8254]
[1749680645646,3.62950058,2755.2,2754.3,0.8254]
[1749680645817,4.45,2755.3,2754.2,7.07018264]
[1749680645818,4.454,2755.1,2754.4,0.78955826]
[1749680646140,4.454,2755.1,2754.5,0.7954]
[1749680647020,8.08368199,2755.1,2754.5,0.7954]
[1749680647346,4.454,2755.1,2754.5,0.7954]
[1749680647505,3.63029114,2754.6,2754.2,0.7539]
[1749680647706,4.443,2754.5,2754.2,0.7539]
[1749680648408,8.07345236,2754.5,2754.2,0.7539]
[1749680648743,4.443,2754.5,2754.2,0.7539]
[1749680649241,3.63008413,2754.8,2754.2,0.7539]
[1749680649242,4.438,2754.4,2754.2,0.7539]
[1749680649399,3.62931599,2755.4,2754.2,0.7539]
[1749680649712,3.62739408,2756.8,2755.3,0.8277]
[1749680649902,4.436,2756.7,2755.8,0.8277]
[1749680650100,3.62786134,2756.5,2755.8,0.8277]
[1749680650525,4.436,2756.4,2755.8,0.8277]
[1749680650726,4.436,2756.4,2755.2,0.8277]
[1749680650938,3.62828322,2756.2,2755.2,0.8277]
[1749680651141,3.62807749,2756.3,2755.2,7.89788264]
[1749680651444,4.454,2756.2,2755.4,0.8277]
[1749680652017,8.08230248,2756.2,2755.9,0.1808]
[1749680652223,3.62830248,2756.2,2755.9,0.1808]
[1749680652548,4.446,2756.1,2756.0,0.00352298]
[1749680652710,4.446,2756.1,2755.9,0.1808]
[1749680652904,3.80875309,2756.4,2755.9,0.1808]
[1749680652905,3.62810921,2756.3,2755.9,0.1808]
[1749680653109,4.446,2756.1,2755.9,0.1808]
[1749680654342,3.62822929,2756.2,2755.9,0.1808]
[1749680654545,0.1808,2756.4,2755.9,0.1808]
[1749680654841,8.06411702,2756.3,2756.0,0.1808]
[1749680655245,3.62826277,2756.2,2756.0,0.1808]
[1749680656269,3.62831537,2756.1,2756.0,0.1808]
[1749680656556,4.436,2756.3,2756.0,0.1808]
[1749680656938,0.4465,2756.2,2755.0,0.7853]
[1749680657113,3.628598,2755.9,2754.6,0.7853]
[1749680657308,3.62985551,2755.0,2754.6,0.7853]
[1749680657556,4.433,2754.9,2754.6,0.7853]
[1749680657855,10.0,2756.7,2754.7,10.0]
[1749680657856,4.433,2755.1,2754.7,10.0]
[1749680658039,8.06340522,2755.3,2754.8,1.96634826]
[1749680658213,4.435,2755.3,2755.0,0.1808]
[1749680658619,4.435,2755.3,2755.2,0.1808]
[1749680659020,4.435,2755.3,2755.2,0.184324]
[1749680660884,1.8645,2756.6,2755.3,0.7853]
[1749680661151,3.62850872,2756.0,2755.3,0.7853]
[1749680661373,4.42,2755.9,2755.7,0.1808]
[1749680661563,0.4465,2756.9,2755.4,0.00352375]
[1749680661729,3.62798596,2756.4,2755.9,0.7998]
[1749680662055,8.04508228,2756.3,2756.1,0.1808]
[1749680662359,4.418,2756.2,2755.9,0.1808]
[1749680662520,4.418,2756.1,2755.6,0.55]
[1749680662744,4.418,2756.1,2755.4,0.7998]
[1749680662745,4.418,2756.1,2755.5,0.55]
[1749680662938,4.418,2756.1,2756.0,0.9806]
[1749680663178,0.1808,2756.7,2756.0,0.9806]
[1749680663350,0.1808,2756.7,2756.0,0.7998]
[1749680663351,4.415,2756.6,2756.0,0.7998]
[1749680663681,3.6274185,2756.8,2756.2,0.1808]
[1749680663682,4.414,2756.5,2756.2,0.1808]
[1749680663983,6.7165,2757.8,2756.5,0.7998]
[1749680664153,0.1808,2757.4,2756.5,2.60487826]
[1749680664358,3.62729747,2756.9,2756.7,0.1808]
[1749680664556,4.414,2756.9,2756.5,0.7998]
[1749680664783,0.1808,2757.3,2756.8,0.1808]
[1749680664943,4.418,2757.3,2756.9,0.7998]
[1749680665149,3.62611796,2757.8,2756.9,0.7998]
[1749680665350,4.418,2757.4,2756.9,1.91787457]
[1749680665545,1.8645,2758.2,2756.9,1.91787457]
[1749680665749,4.416,2758.1,2756.9,1.91787457]
[1749680665953,3.62621273,2757.7,2756.9,1.91787457]
[1749680666407,3.62614512,2757.8,2756.9,1.91787457]
[1749680666587,4.409,2757.6,2757.0,0.19178746]
[1749680666883,3.62629656,2757.7,2757.0,0.19178746]
[1749680667090,3.6249707,2758.7,2757.0,0.19178746]
[1749680667091,0.4465,2758.6,2757.3,0.55]
[1749680667246,1.418,2758.9,2757.3,0.55]
[1749680667247,4.406,2758.5,2757.4,0.7871]
[1749680667598,0.4465,2759.3,2758.0,0.8067]
[1749680667789,4.407,2759.2,2758.1,1.08067]
[1749680668085,3.62437026,2759.1,2758.1,1.08067]
[1749680668383,3.62488534,2758.8,2758.0,0.8067]
[1749680668588,4.407,2759.2,2758.0,0.8067]
[1749680668589,3.62526181,2758.5,2758.0,0.8067]
[1749680668882,4.407,2758.6,2758.0,0.8067]
[1749680669043,8.03206942,2758.6,2758.0,0.8067]
[1749680669251,0.4465,2759.3,2758.0,0.8067]
[1749680669252,3.62553362,2758.3,2758.0,0.8067]
[1749680669454,1.417,2759.1,2758.0,0.8067]
[1749680669455,8.03265204,2758.2,2758.0,0.8067]
[1749680669712,8.03765204,2758.2,2758.0,0.8067]
[1749680670006,8.03757454,2758.2,2758.0,0.8067]
[1749680670223,3.62568434,2758.1,2758.0,0.8067]
[1749680670517,3.6272625,2756.9,2756.8,0.8067]
[1749680670670,4.429,2756.9,2756.8,0.8067]
[1749680671115,3.62678105,2757.3,2756.8,0.8067]
[1749680671442,4.43,2757.3,2756.8,0.8067]
[1749680671596,4.43,2757.3,2755.0,0.5]
[1749680671597,3.6272625,2756.9,2755.9,0.8195]
[1749680671804,3.62763695,2756.7,2756.0,0.78896826]
[1749680671964,4.431,2756.6,2756.0,0.78896826]
[1749680672166,0.4465,2756.5,2754.9,0.8195]
[1749680672371,3.62865488,2755.9,2754.9,0.8195]
[1749680672602,4.431,2755.8,2754.9,0.8195]
[1749680672808,4.431,2755.8,2754.5,0.19631808]
[1749680673018,0.4465,2756.5,2755.1,7.07018264]
[1749680673019,4.45,2755.7,2755.1,7.07018264]
[1749680673317,4.456,2756.2,2755.5,7.07018264]
[1749680673817,3.62833789,2756.1,2755.2,1.45761826]
[1749680674115,3.6283562,2756.1,2755.2,0.7506]
[1749680674415,3.62845782,2756.0,2755.2,0.7506]
[1749680674617,4.07369924,2757.0,2755.2,0.7506]
[1749680674823,1.425,2756.8,2755.7,0.1808]
[1749680675116,3.62832364,2756.1,2755.7,0.1808]
[1749680675314,4.451,2756.0,2755.7,0.1808]
[1749680675728,4.451,2756.0,2755.2,0.7506]
[1749680675729,3.62882145,2755.8,2755.2,0.7506]
[1749680676022,4.449,2755.8,2755.2,0.7506]
[1749680677024,3.62897372,2755.6,2754.2,0.76]
[1749680677228,3.63021003,2754.7,2754.2,0.76]
[1749680677391,3.63068656,2754.3,2754.2,0.76]
[1749680677742,3.63081838,2754.2,2754.1,0.04]
[1749680678015,4.451,2754.2,2754.1,0.04]
[1749680678218,8.08181838,2754.2,2754.1,0.04]
[1749680678422,8.52831838,2754.2,2754.1,0.04]
[1749680678630,10.25677799,2754.2,2754.1,0.04]
[1749680679196,5.80577799,2754.2,2754.1,0.04]
[1749680679406,11.49831838,2754.2,2754.1,0.04]
[1749680679608,18.56850102,2754.2,2754.1,0.04]
[1749680679977,12.8760088,2754.2,2754.1,0.04]
[1749680680405,18.7540088,2754.2,2754.1,0.04]
[1749680681172,33.63095021,2754.1,2753.1,0.04]
[1749680681557,49.52595021,2754.1,2753.1,0.04]
[1749680681824,49.52895021,2754.1,2753.1,0.04]
[1749680681976,44.18095021,2754.1,2753.1,0.04]
[1749680682182,44.03745021,2754.1,2753.1,0.04]
[1749680682414,49.94245021,2754.1,2753.1,0.04]
[1749680682796,13.63108206,2754.0,2753.1,0.04]
[1749680683125,44.18108206,2754.0,2753.1,0.04]
[1749680683422,3.63108206,2754.0,2753.1,0.04]
[1749680683621,9.53408206,2754.0,2753.1,0.04]
[1749680683975,9.93558206,2754.0,2753.1,0.04]
[1749680684184,9.94058206,2754.0,2753.1,0.04]
[1749680684484,39.94058206,2754.0,2753.1,0.04]
[1749680684685,9.93958206,2754.0,2753.1,0.04]
[1749680685487,4.03258206,2754.0,2753.1,0.04]
[1749680685888,8.50758206,2754.0,2753.1,0.04]
[1749680686335,4.475,2754.0,2753.1,0.04]
[1749680686566,8.10608206,2754.0,2753.1,0.04]
[1749680687693,9.05758206,2754.0,2753.1,0.04]
[1749680687937,9.24597846,2754.0,2753.1,0.04]
[1749680688243,49.24597846,2754.0,2753.1,0.04]
[1749680688422,50.67097846,2754.0,2753.1,0.04]
[1749680689146,50.11797846,2754.0,2753.1,0.04]
[1749680689491,20.11797846,2754.0,2753.1,0.04]
[1749680689793,20.11097846,2754.0,2753.1,0.04]
[1749680690291,20.11197846,2754.0,2753.1,0.04]
[1749680690492,4.22097846,2754.0,2753.1,0.04]
[1749680690692,9.91758206,2754.0,2753.1,0.04]
[1749680691440,9.91758206,2754.0,2753.1,0.8184]
[1749680692038,9.91258206,2754.0,2753.1,0.8184]
[1749680692443,9.50908206,2754.0,2753.1,0.8184]
[1749680692791,3.63108206,2754.0,2753.1,0.04]
[1749680692991,8.07808206,2754.0,2753.1,0.04]
[1749680693539,10.7012647,2754.0,2753.1,0.04]
[1749680693835,3.81970616,2754.0,2753.1,0.04]
[1749680694019,9.51008206,2754.0,2753.1,0.04]
[1749680695524,3.63108206,2754.0,2753.1,0.04]
[1749680695723,4.443,2754.0,2753.5,0.8131]
[1749680696043,8.07308206,2754.0,2753.5,0.8131]
[1749680696242,3.63090799,2754.2,2753.5,0.8131]
[1749680696402,5.05734186,2754.6,2753.5,0.9939]
[1749680696403,3.81188206,2754.0,2753.5,0.9939]
[1749680696609,15.3220647,2754.0,2753.1,0.04]
[1749680696823,8.58256287,2754.0,2753.1,0.04]
[1749680697003,3.81188206,2754.0,2753.4,0.7742]
[1749680697208,8.25888206,2754.0,2753.4,0.7742]
[1749680697458,3.80799992,2754.0,2753.4,0.7742]
[1749680697614,8.06643848,2754.0,2753.4,0.7742]
[1749680697817,4.444,2754.0,2753.4,0.7742]
[1749680698149,8.07508206,2754.0,2753.4,0.7742]
[1749680700257,8.07508206,2754.0,2753.9,10.18595041]
[1749680700554,7.9888687,2754.8,2753.9,10.18595041]
[1749680700845,0.33119412,2754.9,2754.0,0.8325]
[1749680701058,3.63061968,2754.4,2754.0,0.8325]
[1749680701213,4.443,2754.3,2753.9,10.18595041]
[1749680701413,3.63108206,2754.0,2753.9,10.18595041]
[1749680701619,8.08808206,2754.0,2753.9,10.18595041]
[1749680701919,0.4015,2755.0,2753.9,10.18595041]
[1749680701920,4.455,2754.2,2754.0,0.8325]
[1749680702124,4.455,2754.1,2754.0,0.8325]
[1749680702334,1.427,2755.0,2754.0,0.8325]
[1749680702335,3.63019379,2754.7,2754.0,0.8325]
[1749680702540,3.63026945,2754.7,2754.0,0.8325]
[1749680702710,0.83701283,2755.5,2754.2,0.8325]
[1749680703055,1.04639092,2756.6,2755.0,0.8325]
[1749680703377,1.04639092,2756.6,2755.4,0.8204]
[1749680703378,3.62910542,2755.5,2755.4,0.8204]
[1749680703654,3.62974073,2755.1,2755.0,0.8204]
[1749680703823,8.09074073,2755.1,2755.0,0.8204]
[1749680704026,3.62976406,2755.0,2754.0,0.8123]
[1749680704210,3.63058376,2754.4,2754.0,1.91212504]
[1749680704412,7.07018264,2755.1,2754.0,1.91212504]
[1749680704611,7.07018264,2755.1,2754.0,0.8123]
[1749680704612,3.63064672,2754.4,2754.0,0.8123]
[1749680704813,4.469,2754.3,2754.0,0.8123]
[1749680705250,3.63095021,2754.1,2754.0,0.8123]
[1749680706118,8.09895021,2754.1,2754.0,0.8123]
[1749680706461,8.09895021,2754.1,2753.9,10.18595041]
[1749680706462,3.63108206,2754.0,2753.9,10.18595041]
[1749680706678,0.1808,2754.0,2753.9,10.18595041]
[1749680706951,3.81188206,2754.0,2753.9,10.18595041]
[1749680707662,8.27088206,2754.0,2753.9,10.18595041]
[1749680708251,8.27488206,2754.0,2753.9,10.18595041]
[1749680708551,8.27288206,2754.0,2753.9,10.18595041]
[1749680708753,8.60406875,2754.0,2753.9,10.18595041]
[1749680708954,8.27288206,2754.0,2753.9,10.18595041]
[1749680709115,9.77764373,2754.0,2753.9,10.18595041]
[1749680709315,36.03187441,2754.0,2753.9,10.18595041]
[1749680709555,26.0830192,2754.0,2753.9,10.18595041]
[1749680709852,16.38788638,2754.0,2753.9,10.18595041]
[1749680710038,20.87848349,2754.0,2753.9,10.18595041]
[1749680710243,5.31675366,2754.0,2753.9,10.18595041]
[1749680710411,9.77175366,2754.0,2753.9,10.18595041]
[1749680710618,9.77178386,2754.0,2753.9,10.18595041]
[1749680710838,9.80466685,2754.0,2753.9,10.18595041]
[1749680711041,9.77179442,2754.0,2753.9,10.18595041]
[1749680711257,9.44048349,2754.0,2753.9,10.18595041]
[1749680711811,16.84197775,2754.0,2753.9,10.18595041]
[1749680712031,16.51066613,2754.0,2753.9,10.18595041]
[1749680712449,59.33686274,2754.0,2753.9,10.18595041]
[1749680712654,59.00556955,2754.0,2753.9,10.18595041]
[1749680712860,11.27498349,2754.0,2753.9,10.18595041]
[1749680713060,12.32711896,2754.0,2753.9,10.18595041]
[1749680713277,11.27498349,2754.0,2753.9,10.18595041]
[1749680713560,4.98548349,2754.0,2753.9,10.18595041]
[1749680713729,9.43648349,2754.0,2753.9,10.18595041]
[1749680714449,10.86848349,2754.0,2753.9,10.18595041]
[1749680715160,11.92061896,2754.0,2753.9,10.18595041]
[1749680715920,7.80231131,2754.0,2753.9,10.18595041]
[1749680716166,4.98548349,2754.0,2753.9,10.18595041]
[1749680716459,9.42348349,2754.0,2753.9,10.18595041]
[1749680716651,4.98548349,2754.0,2753.9,10.18595041]
[1749680716816,8.57907125,2754.0,2753.9,10.18595041]
[1749680717017,8.57607125,2754.0,2753.9,10.18595041]
[1749680717654,0.33118919,2754.0,2753.9,10.18595041]
[1749680717857,4.76018919,2754.0,2753.9,10.18595041]
[1749680718030,8.39127125,2754.0,2753.9,10.18595041]
[1749680719199,3.96227125,2754.0,2753.9,10.18595041]
[1749680719353,8.38327125,2754.0,2753.9,10.18595041]
[1749680719555,9.22628183,2754.0,2753.9,10.18595041]
[1749680719853,5.8574173,2754.0,2753.9,10.18595041]
[1749680720055,9.23228183,2754.0,2753.9,10.18595041]
[1749680720352,9.23028183,2754.0,2753.9,10.18595041]
[1749680721053,16.66800609,2754.0,2753.9,10.18595041]
[1749680722320,16.30046447,2754.0,2753.9,10.18595041]
[1749680722520,17.35157419,2754.0,2753.9,10.18595041]
[1749680722847,10.28139155,2754.0,2753.9,10.18595041]
[1749680723054,4.80528183,2754.0,2753.9,10.18595041]
[1749680723223,9.21828183,2754.0,2753.9,10.18595041]
[1749680723427,9.21928183,2754.0,2753.9,10.18595041]
[1749680723659,0.33118919,2754.0,2753.9,11.99474545]
[1749680723861,8.37627125,2754.0,2753.9,11.99474545]
[1749680724074,4.74518919,2754.0,2753.9,10.97615041]
[1749680726748,4.72818919,2754.0,2753.9,10.97615041]
[1749680726968,0.33118919,2754.0,2753.9,10.97615041]
[1749680727146,4.72818919,2754.0,2753.9,10.97615041]
[1749680727973,0.1808,2754.9,2754.0,0.7902]
[1749680728172,0.1808,2754.9,2754.2,0.7902]
[1749680728358,4.392,2754.8,2754.4,0.1808]
[1749680728575,0.7326,2756.0,2754.3,0.7902]
[1749680728756,0.1808,2755.7,2755.2,0.1808]
[1749680728959,0.84376364,2756.3,2754.8,7.07018264]
[1749680728960,4.39,2755.6,2755.4,0.1808]
[1749680729251,3.62872349,2755.8,2755.4,0.1808]
[1749680729563,0.7326,2755.7,2754.4,0.7902]
[1749680729745,0.7326,2755.7,2753.6,0.36874339]
[1749680729746,0.1808,2755.9,2754.6,0.7902]
[1749680729946,3.62905943,2755.6,2754.8,0.7902]
[1749680730194,8.05072504,2755.8,2754.8,0.7902]
[1749680730349,3.62897372,2755.6,2754.8,0.7902]
[1749680730552,4.421,2755.5,2754.8,0.7902]
[1749680730956,3.62976128,2755.1,2754.8,0.7902]
[1749680731152,4.42,2755.0,2754.8,0.7902]
[1749680731578,3.6295392,2755.2,2754.8,0.7902]
[1749680731882,4.42,2755.2,2754.8,0.7902]
[1749680732845,3.62919579,2755.5,2754.8,0.7902]
[1749680733079,8.04231024,2755.4,2754.8,0.7902]
[1749680733282,4.413,2755.4,2754.8,0.7902]
[1749680733653,8.04227114,2755.4,2754.8,0.7902]
[1749680733854,4.413,2755.4,2754.8,0.7402]
[1749680734356,4.36006522,2756.8,2754.8,7.07018264]
[1749680734549,4.36006522,2756.8,2754.6,10.0]
[1749680734550,4.413,2756.7,2755.2,7.07018264]
[1749680734749,3.62806208,2756.3,2755.2,7.07018264]
[1749680734974,4.412,2756.2,2755.2,7.07018264]
[1749680735485,8.04019419,2756.2,2755.2,7.07018264]
[1749680735645,8.04019419,2756.2,2755.3,0.70701826]
[1749680736086,8.04022823,2756.2,2755.3,0.70701826]
[1749680736383,3.62840289,2756.1,2754.9,7.7772009]
[1749680736578,4.402,2756.0,2754.9,7.7772009]
[1749680736787,3.62812279,2756.3,2754.9,7.7772009]
[1749680736985,1.385,2757.0,2755.5,0.7514]
[1749680737142,4.399,2756.8,2755.7,7.07018264]
[1749680737347,3.62780331,2756.5,2755.8,0.7514]
[1749680737691,3.62752566,2756.7,2755.8,0.7514]
[1749680737848,3.62857868,2755.9,2755.8,0.7514]
[1749680738058,3.6294991,2755.3,2755.0,0.7514]
[1749680738297,3.62963231,2755.1,2755.0,0.7514]
[1749680738587,3.62963231,2755.1,2754.2,0.7514]
[1749680738588,4.398,2755.1,2754.2,0.7514]
[1749680738785,3.62969937,2755.1,2754.2,0.9363015]
[1749680738991,8.02987922,2755.0,2754.2,0.9363015]
[1749680739202,4.4,2755.0,2754.2,0.9363015]
[1749680739364,4.398,2754.9,2754.5,0.1808]
[1749680739563,3.63025126,2754.7,2754.5,0.1808]
[1749680739781,8.0279434,2754.9,2754.2,0.7514]
[1749680739782,4.398,2754.9,2754.2,0.7514]
[1749680740094,0.1808,2754.6,2754.2,0.7514]
[1749680740386,4.393,2754.5,2754.2,0.7514]
[1749680741109,0.1808,2754.6,2754.2,0.7514]
[1749680741110,4.389,2754.6,2754.4,0.1808]
[1749680741254,4.389,2754.6,2754.2,0.7514]
[1749680741453,4.389,2754.6,2754.2,2.00734]
[1749680741905,3.6292634,2755.4,2754.4,7.07018264]
[1749680742068,3.63004032,2754.8,2754.6,0.7514]
[1749680742262,8.01415936,2754.7,2754.6,0.7514]
[1749680742456,8.19495936,2754.7,2754.6,0.7514]
[1749680743989,4.5648,2754.7,2754.0,0.8179]
[1749680744162,3.63095021,2754.1,2754.0,0.8179]
[1749680744382,3.63108206,2754.0,2753.9,10.18595041]
[1749680745174,0.7695,2753.9,2753.1,0.04]
[1749680745423,3.63095021,2754.1,2753.1,0.8579]
[1749680745573,3.63147764,2753.7,2753.1,0.8579]
[1749680745919,2.1545,2754.2,2753.1,0.8579]
[1749680745920,3.63090655,2754.2,2753.1,0.8579]
[1749680746089,3.63059442,2754.4,2753.1,0.8579]
[1749680746295,3.63068656,2754.3,2753.1,0.8579]
[1749680746615,4.408,2754.2,2753.1,0.8579]
[1749680746774,3.63213714,2753.2,2753.1,0.04]
[1749680746969,8.03913714,2753.2,2753.1,0.04]
[1749680747587,3.63213714,2753.2,2753.1,0.04]
[1749680748012,8.05613714,2753.2,2753.1,0.04]
[1749680749322,8.83873714,2753.2,2753.1,0.04]
[1749680749525,10.22073714,2753.2,2753.1,0.04]
[1749680750186,4.41473714,2753.2,2753.1,0.04]
[1749680750386,10.21773714,2753.2,2753.1,0.04]
[1749680750587,8.05013714,2753.2,2753.1,0.04]
[1749680751026,8.04913714,2753.2,2753.1,0.04]
[1749680753015,8.03813714,2753.2,2753.1,0.04]
[1749680753645,3.63213714,2753.2,2753.1,0.04]
[1749680754011,8.03513714,2753.2,2753.1,0.04]
[1749680754918,8.79363714,2753.2,2753.1,0.04]
[1749680755519,10.17463714,2753.2,2753.1,0.04]
[1749680755709,10.52955562,2753.2,2753.1,0.04]
[1749680756853,10.4357522,2753.2,2753.1,0.04]
[1749680758359,10.4177522,2753.2,2753.1,0.04]
[1749680758561,24.03993484,2753.2,2753.1,0.04]
[1749680758761,3.63292886,2752.6,2752.5,0.05]
[1749680758920,8.01392886,2752.6,2752.5,0.05]
[1749680759879,8.79652886,2752.6,2752.5,0.05]
[1749680760259,3.8146768,2752.5,2751.3,0.0894]
[1749680760444,3.63425326,2751.6,2751.3,0.0894]
[1749680760632,4.373,2751.5,2751.3,0.0894]
[1749680761030,3.63477755,2751.2,2751.1,0.2466]
[1749680761235,3.63477755,2751.2,2748.9,0.18916272]
[1749680761236,30.0,2750.5,2749.1,0.02224162]
[1749680761530,3.63742179,2749.2,2749.1,0.02224162]
[1749680761731,3.6398049,2747.4,2747.3,10.70936639]
[1749680761930,8.61821237,2747.4,2747.3,10.70936639]
[1749680762140,8.61821237,2747.4,2743.9,8.74182149]
[1749680762141,45.16857859,2747.4,2744.7,1.091961]
[1749680762342,3.64123193,2746.4,2744.4,0.36037966]
[1749680762541,3.64139538,2746.2,2745.1,1.622]
[1749680762859,4.19272184,2745.2,2745.1,0.04]
[1749680763028,8.37172184,2745.2,2745.1,0.04]
[1749680763232,4.729,2745.2,2745.1,0.04]
[1749680763471,0.30326232,2745.2,2745.1,0.04]
[1749680763628,0.36106983,2746.5,2745.2,0.7528]
[1749680763832,0.36106983,2746.5,2745.4,0.7528]
[1749680764074,0.36106983,2746.5,2745.5,1.582]
[1749680764284,0.7933,2747.7,2745.5,0.00353645]
[1749680764461,0.35776426,2746.9,2745.5,0.00353645]
[1749680764668,0.7933,2748.0,2745.6,0.7528]
[1749680764982,3.63890371,2748.1,2746.3,0.8101]
[1749680765145,5.209,2747.9,2746.3,0.8101]
[1749680765351,3.63928633,2747.8,2746.3,0.8101]
[1749680765548,5.21,2747.9,2746.4,0.00482959]
[1749680765781,3.63934582,2747.8,2746.4,0.00482959]
[1749680765981,5.21,2747.9,2746.4,0.00482959]
[1749680766335,3.63825154,2748.6,2746.4,0.00482959]
[1749680766336,0.8118,2749.6,2746.7,9.04844471]
[1749680766540,5.238,2749.5,2746.9,0.8035]
[1749680767039,3.63778875,2749.0,2747.1,0.8035]
[1749680767257,3.63573927,2750.5,2747.3,0.8035]
[1749680767456,30.0,2750.7,2748.1,10.8035]
[1749680767656,3.63736443,2749.3,2748.4,0.7517]
[1749680767859,3.63702491,2749.5,2748.4,0.7517]
[1749680768076,3.6380742,2748.8,2748.5,0.0048259]
[1749680768257,3.63781876,2748.9,2748.5,0.0048259]
[1749680768456,5.255,2749.2,2748.5,0.0048259]
[1749680768674,3.63812282,2748.7,2748.5,0.0048259]
[1749680768875,3.63821581,2748.6,2748.5,0.0048259]
[1749680769879,4.13821581,2748.6,2748.5,0.0048259]
[1749680770242,0.5,2748.6,2748.5,0.0048259]
[1749680770446,5.241,2749.4,2748.5,0.7971259]
[1749680770638,8.87826721,2749.4,2748.5,0.7971259]
[1749680770877,5.241,2749.4,2748.5,0.7971259]
[1749680771077,3.6377964,2749.0,2748.5,0.7971259]
[1749680771281,3.63804445,2748.8,2748.5,0.7971259]
[1749680771487,3.6379715,2748.8,2748.6,0.1816]
[1749680771785,5.245,2748.9,2748.6,0.1816]
[1749680772010,3.63795466,2748.8,2748.5,0.7923]
[1749680772195,8.88286116,2748.9,2748.7,0.1816]